fUSD/lending_fUSD_20260316
["ID","MTS","AMOUNT","RATE_DAILY","PERIOD"]
[408453157,1773660633156,-622.33281,0.000198,2]
[408453158,1773660633166,-2000.0,0.000198,2]
[408453159,1773660633177,-636.48719445,0.00019809,2]
[408453160,1773660633186,-140145.36425282,0.0001981,2]
[408453161,1773660633199,-13999.42798464,0.0001981,2]
[408453162,1773660633214,-995.94341486,0.0001981,2]
[408453163,1773660633226,-662.1323983,0.0001981,2]
[408453166,1773660638188,-970.1904,0.00019698,2]
[408453167,1773660638197,-498.5362949,0.00019802,2]
[408453168,1773660638207,-7812.19420964,0.0001981,2]
[408453169,1773660638244,-2015.37438012,0.0001981,2]
[408453170,1773660638255,-426.46402275,0.0001981,2]
[408453171,1773660638267,-498.67456164,0.0001981,2]
[408453172,1773660638278,-1336.8925829,0.0001981,2]
[408453191,1773660640209,-63523.80347834,0.0001981,2]
[408453192,1773660640219,-682.58,0.00019821,2]
[408453193,1773660640229,-498.5362949,0.00019821,2]
[408453194,1773660640239,-354.34104237,0.00019823,2]
[408453195,1773660640248,-1677.93,0.00019825,2]
[408453196,1773660640257,-500.0,0.00019836,2]
[408453197,1773660640267,-541.0,0.00019836,2]
[408453198,1773660640276,-354.34104237,0.00019849,2]
[408453199,1773660640285,-354.34104237,0.00019874,2]
[408453200,1773660640295,-500.0,0.0001989,2]
[408453201,1773660640304,-541.0,0.0001989,2]
[408453202,1773660640313,-31484.4401,0.00019898,2]
[408453203,1773660640323,-1000.0,0.00019898,2]
[408453204,1773660640332,-1031.5002,0.00019899,2]
[408453205,1773660640341,-308.7218,0.000199,2]
[408453206,1773660640351,-526.59846192,0.000199,2]
[408453207,1773660640360,-488.0829,0.000199,2]
[408453208,1773660640370,-354.34104237,0.000199,2]
[408453209,1773660640379,-2000.0,0.000199,2]
[408453210,1773660640388,-2816.654,0.00019918,2]
[408453211,1773660640398,-173.293,0.00019918,2]
[408453212,1773660640407,-167.49,0.00019945,2]
[408453213,1773660640416,-413.84992832,0.00019945,2]
[408453214,1773660640425,-541.0,0.00019945,2]
[408453215,1773660640435,-166.66,0.00019967,2]
[408453216,1773660640444,-500.96532559,0.00019973,2]
[408453217,1773660640453,-500.0,0.00019973,2]
[408453218,1773660640463,-197.79386672,0.00019973,2]
[408453219,1773660640472,-500.0,0.00019973,2]
[408453220,1773660640482,-502.81583938,0.00019973,2]
[408453221,1773660640491,-500.0,0.00019973,2]
[408453222,1773660640500,-502.66188252,0.00019973,2]
[408453223,1773660640509,-500.0,0.00019973,2]
[408453224,1773660640519,-150.14636363,0.00019973,2]
[408453225,1773660640528,-500.0,0.00019973,2]
[408453226,1773660640541,-500.0,0.00019973,2]
[408453227,1773660640550,-500.0,0.00019973,2]
[408453228,1773660640559,-501.83165766,0.00019973,2]
[408453229,1773660640569,-500.0,0.00019973,2]
[408453230,1773660640578,-250.0,0.00019973,2]
[408453231,1773660640588,-151.0,0.00019997,2]
[408453232,1773660640597,-500.0,0.00019998,2]
[408453233,1773660640606,-341.71272673,0.00019998,2]
[408453234,1773660640615,-330.31075332,0.00019998,2]
[408453235,1773660640624,-500.0,0.00019998,2]
[408453236,1773660640634,-19715.3194135,0.00019998,2]
[408453237,1773660640643,-500.0,0.00019998,2]
[408453238,1773660640653,-501.0042212,0.00019999,2]
[408453239,1773660640662,-4288.9881328,0.00019999,2]
[408453240,1773660640672,-363.14890515,0.00019999,2]
[408453241,1773660640681,-500.0,0.00019999,2]
[408453242,1773660640691,-89068.5619115,0.00019999,2]
[408453243,1773660640700,-1090.4440196,0.00019999,2]
[408453244,1773660640712,-500.0,0.00019999,2]
[408453245,1773660640722,-500.0,0.00019999,2]
[408453246,1773660640731,-501.50298323,0.00019999,2]
[408453247,1773660640740,-500.0,0.00019999,2]
[408453248,1773660640750,-500.0,0.00019999,2]
[408453249,1773660640759,-500.0,0.00019999,2]
[408453250,1773660640769,-500.0,0.00019999,2]
[408453251,1773660640779,-500.0,0.00019999,2]
[408453252,1773660640788,-500.0,0.00019999,2]
[408453253,1773660640797,-500.0,0.00019999,2]
[408453254,1773660640808,-500.0,0.00019999,2]
[408453255,1773660640818,-500.0,0.00019999,2]
[408453256,1773660640827,-500.0,0.00019999,2]
[408453257,1773660640837,-333.80551454,0.00019999,2]
[408453259,1773660640846,-500.0,0.00019999,2]
[408453261,1773660640855,-500.0,0.00019999,2]
[408453263,1773660640864,-500.0,0.00019999,2]
[408453265,1773660640873,-500.0,0.00019999,2]
[408453267,1773660640883,-500.0,0.00019999,2]
[408453268,1773660640892,-500.0,0.00019999,2]
[408453269,1773660640901,-511.47891281,0.00019999,2]
[408453270,1773660640912,-500.0,0.00019999,2]
[408453271,1773660640923,-500.0,0.00019999,2]
[408453272,1773660640932,-500.0,0.00019999,2]
[408453273,1773660640942,-500.0,0.00019999,2]
[408453274,1773660640951,-275.89511413,0.00019999,2]
[408453275,1773660640961,-500.0,0.00019999,2]
[408453276,1773660640971,-500.0,0.00019999,2]
[408453277,1773660640980,-500.0,0.00019999,2]
[408453278,1773660640990,-500.0,0.00019999,2]
[408453279,1773660640999,-500.0,0.00019999,2]
[408453280,1773660641008,-425.48857279,0.00019999,2]
[408453281,1773660641019,-2348.0,0.0002,5]
[408453282,1773660641028,-1877.0,0.0002,5]
[408453283,1773660641038,-541.0,0.0002,2]
[408453284,1773660641047,-2672399.21114914,0.0002,2]
[408453293,1773660643217,-445673.90429198,0.0002,2]
[408453296,1773660645902,-12652.20010041,0.00019698,2]
[408453297,1773660645957,-2856.80867312,0.00019698,2]
[408453302,1773661533152,-233.9451,0.00018799,2]
[408453303,1773661533173,-422.80387737,0.00018809,2]
[408453304,1773661533193,-1500.0,0.00018856,2]
[408453305,1773661533215,-150.0,0.00018899,2]
[408453306,1773661533239,-422.7511,0.00018899,2]
[408453307,1773661533258,-409.48727053,0.00018923,2]
[408453308,1773661607086,-150.0,0.00018809,2]
[408453309,1773661607106,-35.48468121,0.000189,2]
[408453310,1773661633083,-662.0,0.00017,2]
[408453311,1773661633103,-221.0,0.0001886,2]
[408453312,1773661633124,-578.51531879,0.000189,2]
[408453313,1773661633144,-262.27354141,0.00018923,2]
[408453314,1773661634085,-769.52918806,0.00018923,2]
[408453315,1773661634106,-910.28242989,0.00018968,2]
[408453324,1773661832121,-306.0,0.00018209,2]
[408453325,1773661832131,-431.7,0.00018209,2]
[408453326,1773661832141,-10.30966555,0.00018553,2]
[408453327,1773661832152,-664.54991355,0.00018553,2]
[408453328,1773661832163,-299.2104209,0.00018553,2]
[408453329,1773661832172,-1089.71757011,0.00018968,2]
[408453330,1773661832182,-151.0,0.00018999,2]
[408453331,1773661832191,-66.79928057,0.00018999,2]
[408453332,1773661832202,-107.81991084,0.00018999,2]
[408453333,1773661832211,-250.72299322,0.00019,2]
[408453334,1773661832220,-1639.96452079,0.00019034,2]
[408453335,1773661832231,-360.03547921,0.00019034,2]
[408453336,1773661832240,-1240.99124724,0.00019048,2]
[408453337,1773661832250,-289.0,0.0001918,2]
[408453338,1773661832259,-289.0,0.00019188,2]
[408453339,1773661832268,-289.0,0.00019212,2]
[408453340,1773661832277,-1200.0,0.00019219,2]
[408453342,1773661832286,-490.60054251,0.0001922,2]
[408453344,1773661832297,-927.69623708,0.0001922,2]
[408453347,1773661832316,-119.70322041,0.0001922,2]
[408453348,1773661832326,-431.7,0.0001927,2]
[408453349,1773661832335,-404.0,0.00019332,2]
[408453351,1773661832344,-241.0,0.00019411,2]
[408453352,1773661832353,-300.0,0.00019411,2]
[408453353,1773661832362,-289.0,0.00019412,2]
[408453354,1773661832371,-300.0,0.00019453,2]
[408453355,1773661832380,-289.0,0.00019454,2]
[408453356,1773661832390,-218.89,0.00019461,2]
[408453358,1773661832399,-151.63,0.00019483,2]
[408453360,1773661832409,-2000.0,0.000195,2]
[408453362,1773661832419,-25471.7947,0.000195,2]
[408453364,1773661832428,-1538.0,0.0001954,2]
[408453366,1773661832437,-1538.0,0.0001954,2]
[408453368,1773661832446,-181.08010149,0.00019547,2]
[408453370,1773661832455,-16869.29681684,0.00019578,2]
[408453371,1773661832464,-850.0,0.00019587,2]
[408453372,1773661832475,-500.0,0.00019588,2]
[408453373,1773661832485,-500.0,0.00019588,2]
[408453374,1773661832494,-500.0,0.00019588,2]
[408453375,1773661832503,-500.0,0.00019588,2]
[408453376,1773661832514,-500.0,0.00019588,2]
[408453377,1773661832525,-500.0,0.00019588,2]
[408453378,1773661832535,-500.0,0.00019588,2]
[408453379,1773661832553,-250.0,0.00019588,2]
[408453380,1773661832566,-250.0,0.00019588,2]
[408453381,1773661832575,-500.0,0.00019588,2]
[408453382,1773661832585,-250.0,0.00019588,2]
[408453383,1773661832594,-500.0,0.00019588,2]
[408453384,1773661832603,-250.0,0.00019588,2]
[408453385,1773661832613,-500.0,0.00019588,2]
[408453386,1773661832622,-250.0,0.00019588,2]
[408453387,1773661832631,-500.0,0.00019588,2]
[408453388,1773661832641,-250.0,0.00019588,2]
[408453389,1773661832650,-500.0,0.00019588,2]
[408453390,1773661832660,-500.0,0.00019588,2]
[408453391,1773661832670,-250.0,0.00019588,2]
[408453392,1773661832679,-500.0,0.00019588,2]
[408453393,1773661832689,-264.08027263,0.00019588,2]
[408453394,1773661832698,-500.0,0.00019588,2]
[408453395,1773661832707,-500.0,0.00019588,2]
[408453396,1773661832717,-500.0,0.00019588,2]
[408453397,1773661832727,-500.0,0.00019588,2]
[408453398,1773661832737,-500.0,0.00019588,2]
[408453399,1773661832747,-500.0,0.00019588,2]
[408453400,1773661832756,-500.0,0.00019588,2]
[408453401,1773661832766,-500.0,0.00019588,2]
[408453402,1773661832775,-500.0,0.00019588,2]
[408453403,1773661832784,-500.0,0.00019588,2]
[408453404,1773661832793,-250.0,0.00019588,2]
[408453405,1773661832804,-250.0,0.00019588,2]
[408453406,1773661832813,-250.0,0.00019588,2]
[408453407,1773661832823,-250.0,0.00019588,2]
[408453408,1773661832832,-250.0,0.00019588,2]
[408453409,1773661832842,-250.0,0.00019588,2]
[408453410,1773661832851,-250.0,0.00019588,2]
[408453411,1773661832860,-250.0,0.00019588,2]
[408453412,1773661832869,-250.0,0.00019588,2]
[408453413,1773661832878,-250.0,0.00019588,2]
[408453414,1773661832887,-250.0,0.00019588,2]
[408453415,1773661832896,-250.0,0.00019588,2]
[408453416,1773661832905,-69905.7805,0.0001961,2]
[408453417,1773661832914,-289.0,0.00019671,2]
[408453418,1773661832923,-504.38182692,0.00019673,2]
[408453419,1773661832932,-500.0,0.00019673,2]
[408453420,1773661832941,-319.30548858,0.00019673,2]
[408453421,1773661832950,-500.0,0.00019673,2]
[408453422,1773661832959,-289.0,0.00019675,2]
[408453423,1773661832968,-2000.0,0.000197,2]
[408453424,1773661832977,-154.1444422,0.00019701,2]
[408453425,1773661832987,-193.44146046,0.00019708,2]
[408453426,1773661832995,-174.81914254,0.00019708,2]
[408453427,1773661833006,-500.0,0.00019708,2]
[408453428,1773661833016,-500.0,0.00019708,2]
[408453429,1773661833026,-500.0,0.00019708,2]
[408453430,1773661833035,-159.01520008,0.00019708,2]
[408453431,1773661833045,-306.85595492,0.00019708,2]
[408453432,1773661833055,-504.20218204,0.00019708,2]
[408453433,1773661833065,-200.0,0.00019708,2]
[408453434,1773661833074,-500.0,0.00019708,2]
[408453435,1773661833083,-500.0,0.00019708,2]
[408453436,1773661833093,-500.0,0.00019708,2]
[408453437,1773661833103,-500.0,0.00019708,2]
[408453438,1773661833113,-500.0,0.00019708,2]
[408453439,1773661833123,-500.0,0.00019708,2]
[408453440,1773661833132,-500.0,0.00019708,2]
[408453441,1773661833142,-500.0,0.00019708,2]
[408453442,1773661833151,-500.0,0.00019708,2]
[408453443,1773661833160,-500.0,0.00019708,2]
[408453444,1773661833170,-31484.4401,0.0001971,2]
[408453445,1773661833179,-1000.0,0.0001971,2]
[408453446,1773661833189,-289.0,0.00019712,2]
[408453447,1773661833199,-150.0,0.00019726,2]
[408453448,1773661833209,-150.0,0.00019726,2]
[408453449,1773661833219,-500.0,0.00019726,2]
[408453450,1773661833230,-150.0,0.00019726,2]
[408453451,1773661833241,-150.0,0.00019726,2]
[408453452,1773661833252,-763.0,0.00019726,2]
[408453453,1773661833262,-2095.0,0.00019749,2]
[408453454,1773661833272,-289.0,0.0001976,2]
[408453455,1773661833281,-289.0,0.00019763,2]
[408453456,1773661833291,-289.0,0.00019765,2]
[408453457,1773661833301,-150.0,0.00019781,2]
[408453458,1773661833315,-150.0,0.00019781,2]
[408453459,1773661833324,-500.0,0.00019781,2]
[408453460,1773661833334,-763.0,0.00019781,2]
[408453461,1773661833343,-2095.0,0.00019785,2]
[408453462,1773661833353,-773.0645419,0.00019788,2]
[408453463,1773661833363,-1777.77777,0.000198,2]
[408453464,1773661833372,-1777.77778,0.000198,2]
[408453465,1773661833381,-1031.5002,0.000198,2]
[408453466,1773661833391,-2000.0,0.000198,2]
[408453467,1773661833401,-404.0,0.00019801,2]
[408453468,1773661833410,-500.0,0.00019809,2]
[408453469,1773661833419,-501.50298323,0.00019809,2]
[408453470,1773661833429,-500.0,0.00019809,2]
[408453471,1773661833439,-500.0,0.00019809,2]
[408453472,1773661833448,-500.0,0.00019809,2]
[408453473,1773661833458,-500.0,0.00019809,2]
[408453474,1773661833467,-500.0,0.00019809,2]
[408453475,1773661833483,-746.22,0.00019809,2]
[408453476,1773661833494,-500.0,0.00019809,2]
[408453477,1773661833504,-500.0,0.00019809,2]
[408453478,1773661833516,-500.0,0.00019809,2]
[408453479,1773661833528,-500.0,0.00019809,2]
[408453480,1773661833538,-500.0,0.00019809,2]
[408453481,1773661833548,-217.49,0.00019825,2]
[408453482,1773661833557,-150.0,0.00019836,2]
[408453483,1773661833567,-150.0,0.00019836,2]
[408453484,1773661833576,-500.0,0.00019836,2]
[408453485,1773661833586,-763.0,0.00019836,2]
[408453486,1773661833595,-200.0,0.0001984,2]
[408453487,1773661833605,-1538.0,0.0001986,2]
[408453488,1773661833614,-250.0,0.00019863,2]
[408453489,1773661833623,-1441.29,0.00019869,2]
[408453490,1773661833633,-500.0,0.00019873,2]
[408453491,1773661833642,-162.30677567,0.00019873,2]
[408453492,1773661833652,-311.88705213,0.00019873,2]
[408453493,1773661833661,-150.14636363,0.00019873,2]
[408453494,1773661833863,-500.0,0.00019873,2]
[408453495,1773661833873,-500.0,0.00019873,2]
[408453496,1773661833883,-502.66188252,0.00019873,2]
[408453497,1773661833892,-500.0,0.00019873,2]
[408453498,1773661833902,-501.83165766,0.00019873,2]
[408453499,1773661833911,-500.0,0.00019873,2]
[408453500,1773661833921,-246.25182677,0.00019873,2]
[408453501,1773661833930,-500.0,0.00019873,2]
[408453502,1773661833939,-3606.168,0.00019874,2]
[408453503,1773661833948,-173.583,0.00019874,2]
[408453504,1773661833958,-150.0,0.0001989,2]
[408453505,1773661833967,-150.0,0.0001989,2]
[408453506,1773661833976,-500.0,0.0001989,2]
[408453507,1773661833985,-763.0,0.0001989,2]
[408453508,1773661833995,-177.17052122,0.00019898,2]
[408453509,1773661834004,-177.17052118,0.00019898,2]
[408453510,1773661834013,-177.17052118,0.00019899,2]
[408453511,1773661834026,-177.17052118,0.00019899,2]
[408453512,1773661834036,-500.0,0.00019899,2]
[408453513,1773661834045,-500.0,0.00019899,2]
[408453514,1773661834054,-500.0,0.00019899,2]
[408453515,1773661834063,-2391.42284052,0.00019899,2]
[408453516,1773661834073,-500.0,0.00019899,2]
[408453517,1773661834081,-500.0,0.00019899,2]
[408453518,1773661834091,-2391.42284046,0.00019899,2]
[408453519,1773661834100,-177.17052118,0.00019899,2]
[408453520,1773661834109,-2391.42284046,0.00019899,2]
[408453521,1773661834118,-2391.42284046,0.00019899,2]
[408453522,1773661834128,-177.17052118,0.00019899,2]
[408453523,1773661834137,-2391.42284046,0.00019899,2]
[408453524,1773661834146,-2391.42284046,0.000199,2]
[408453525,1773661834156,-2391.42284046,0.000199,2]
[408453526,1773661834165,-177.17052118,0.000199,2]
[408453527,1773661834174,-2391.42284046,0.000199,2]
[408453528,1773661834184,-2391.42284046,0.000199,2]
[408453529,1773661834193,-200.0,0.000199,2]
[408453530,1773661834202,-250.0,0.000199,2]
[408453531,1773661834211,-308.7218,0.000199,2]
[408453532,1773661834221,-526.59846192,0.000199,2]
[408453533,1773661834230,-488.0829,0.000199,2]
[408453534,1773661834239,-150.86579194,0.000199,2]
[408453535,1773661834249,-5800.0,0.000199,2]
[408453536,1773661834258,-177.17052118,0.000199,2]
[408453537,1773661834267,-150.0,0.000199,2]
[408453538,1773661834276,-23129.06713082,0.000199,2]
[408453539,1773661834285,-1915.14354733,0.000199,2]
[408453540,1773661834295,-2391.42284046,0.000199,2]
[408453541,1773661834304,-22010.11413511,0.000199,2]
[408453542,1773661834337,-500.0,0.00019708,2]
[408453543,1773661834347,-530.3069253,0.00019708,2]
[408453544,1773661834356,-5947.77045426,0.000199,2]
[408453545,1773661834366,-2000.0,0.000199,2]
[408453546,1773661834375,-250.0,0.00019918,2]
[408453547,1773661834384,-404.0,0.00019936,2]
[408453548,1773661834393,-250.0,0.00019945,2]
[408453549,1773661834402,-238.90900977,0.00019945,2]
[408453550,1773661834411,-150.0,0.00019945,2]
[408453551,1773661834420,-500.0,0.00019945,2]
[408453552,1773661834430,-763.0,0.00019945,2]
[408453553,1773661834440,-382.99541571,0.0001997,2]
[408453554,1773661834449,-309.0,0.00019973,2]
[408453555,1773661834458,-1198.92210212,0.00019973,2]
[408453556,1773661835099,-3641.07789788,0.00019973,2]
[408453557,1773661835109,-500.0,0.00019973,2]
[408453558,1773661835119,-500.0,0.00019973,2]
[408453559,1773661835129,-302.92435806,0.00019973,2]
[408453560,1773661835139,-270.63531583,0.00019973,2]
[408453561,1773661835149,-500.36457257,0.00019973,2]
[408453562,1773661835158,-5989.0,0.00019973,2]
[408453563,1773661835168,-250.0,0.00019973,2]
[408453564,1773661835178,-150.30152541,0.0001999,2]
[408453565,1773661835189,-150.30152541,0.0001999,2]
[408453566,1773661835199,-150.30152541,0.0001999,2]
[408453567,1773661835208,-19096.5637987,0.00019996,2]
[408453568,1773661835217,-151.0,0.00019997,2]
[408453569,1773661835227,-151.0,0.00019997,2]
[408453570,1773661835237,-151.0,0.00019997,2]
[408453571,1773661835246,-151.0,0.00019997,2]
[408453572,1773661835257,-500.0,0.00019998,2]
[408453573,1773661835267,-500.0,0.00019998,2]
[408453574,1773661835277,-500.0,0.00019998,2]
[408453575,1773661835286,-500.0,0.00019998,2]
[408453576,1773661835296,-500.0,0.00019998,2]
[408453577,1773661835306,-500.0,0.00019998,2]
[408453578,1773661835315,-330.31075332,0.00019998,2]
[408453579,1773661835325,-500.0,0.00019998,2]
[408453580,1773661835334,-341.71272673,0.00019998,2]
[408453581,1773661835343,-500.0,0.00019998,2]
[408453582,1773661835353,-500.0,0.00019998,2]
[408453583,1773661835362,-511.47891281,0.00019998,2]
[408453584,1773661835372,-500.0,0.00019998,2]
[408453585,1773661835383,-500.0,0.00019998,2]
[408453586,1773661835394,-500.0,0.00019998,2]
[408453587,1773661835403,-500.0,0.00019998,2]
[408453588,1773661835413,-500.0,0.00019998,2]
[408453589,1773661835423,-500.0,0.00019998,2]
[408453590,1773661835433,-500.0,0.00019998,2]
[408453591,1773661835443,-500.0,0.00019998,2]
[408453592,1773661835453,-300.0,0.00019999,2]
[408453593,1773661835463,-666.0,0.00019999,2]
[408453594,1773661835473,-300.0,0.00019999,2]
[408453595,1773661835487,-310.24933161,0.00019999,2]
[408453596,1773661835498,-71119.2418159,0.00019999,2]
[408453597,1773661835508,-18982.654374,0.00019999,2]
[408453598,1773661835520,-110682.2546304,0.00019999,2]
[408453599,1773661835530,-3372.3067953,0.00019999,2]
[408453600,1773661835540,-3709.9310282,0.00019999,2]
[408453601,1773661835550,-500.0,0.00019999,2]
[408453602,1773661835559,-500.0,0.00019999,2]
[408453603,1773661835569,-500.0,0.00019999,2]
[408453604,1773661835580,-500.0,0.00019999,2]
[408453605,1773661835589,-500.0,0.00019999,2]
[408453606,1773661835600,-500.0,0.00019999,2]
[408453607,1773661835610,-500.0,0.00019999,2]
[408453608,1773661835619,-500.0,0.00019999,2]
[408453609,1773661835629,-500.0,0.00019999,2]
[408453610,1773661835639,-500.0,0.00019999,2]
[408453611,1773661835648,-500.0,0.00019999,2]
[408453612,1773661835657,-216.27472105,0.00019999,2]
[408453613,1773661835667,-500.0,0.00019999,2]
[408453614,1773661835677,-500.0,0.00019999,2]
[408453615,1773661835690,-500.0,0.00019999,2]
[408453616,1773661835701,-500.0,0.00019999,2]
[408453617,1773661835710,-500.0,0.00019999,2]
[408453618,1773661835720,-500.0,0.00019999,2]
[408453619,1773661835731,-500.0,0.00019999,2]
[408453620,1773661835741,-500.0,0.00019999,2]
[408453621,1773661835750,-500.0,0.00019999,2]
[408453622,1773661835760,-500.0,0.00019999,2]
[408453623,1773661835769,-500.0,0.00019999,2]
[408453624,1773661835780,-500.0,0.00019999,2]
[408453625,1773661835789,-500.0,0.00019999,2]
[408453626,1773661835799,-500.0,0.00019999,2]
[408453627,1773661835808,-500.0,0.00019999,2]
[408453628,1773661835818,-500.0,0.00019999,2]
[408453629,1773661835827,-500.0,0.00019999,2]
[408453630,1773661835837,-500.0,0.00019999,2]
[408453631,1773661835847,-283.3335625,0.00019999,2]
[408453632,1773661835856,-333.80551454,0.00019999,2]
[408453633,1773661835865,-500.0,0.00019999,2]
[408453634,1773661835876,-500.0,0.00019999,2]
[408453635,1773661835886,-500.0,0.00019999,2]
[408453636,1773661835895,-1170.5387543,0.00019999,2]
[408453637,1773661835905,-500.0,0.00019999,2]
[408453638,1773661835916,-500.0,0.00019999,2]
[408453639,1773661835925,-500.0,0.00019999,2]
[408453640,1773661835935,-500.0,0.00019999,2]
[408453641,1773661835945,-500.0,0.00019999,2]
[408453642,1773661835954,-500.0,0.00019999,2]
[408453643,1773661835963,-500.0,0.00019999,2]
[408453644,1773661835973,-500.0,0.00019999,2]
[408453645,1773661835983,-457.35506792,0.00019999,2]
[408453646,1773661835992,-500.0,0.00019999,2]
[408453647,1773661836001,-500.0,0.00019999,2]
[408453648,1773661836011,-275.89511413,0.00019999,2]
[408453649,1773661836020,-500.0,0.00019999,2]
[408453650,1773661836029,-500.0,0.00019999,2]
[408453651,1773661836039,-500.0,0.00019999,2]
[408453652,1773661836048,-425.48857279,0.00019999,2]
[408453653,1773661836058,-500.0,0.00019999,2]
[408453654,1773661836067,-500.0,0.00019999,2]
[408453655,1773661836076,-500.0,0.00019999,2]
[408453656,1773661836086,-500.0,0.00019999,2]
[408453657,1773661836096,-500.0,0.00019999,2]
[408453658,1773661836105,-500.0,0.00019999,2]
[408453659,1773661836115,-500.0,0.00019999,2]
[408453660,1773661836124,-500.0,0.00019999,2]
[408453661,1773661836133,-500.0,0.00019999,2]
[408453662,1773661836143,-500.0,0.00019999,2]
[408453663,1773661836153,-500.0,0.00019999,2]
[408453664,1773661836162,-500.0,0.00019999,2]
[408453665,1773661836172,-500.0,0.00019999,2]
[408453666,1773661836181,-500.0,0.00019999,2]
[408453667,1773661836190,-500.0,0.00019999,2]
[408453668,1773661836199,-500.0,0.00019999,2]
[408453669,1773661836208,-504.81538106,0.00019999,2]
[408453670,1773661836217,-500.0,0.00019999,2]
[408453671,1773661836226,-500.0,0.00019999,2]
[408453672,1773661836235,-500.0,0.00019999,2]
[408453673,1773661836244,-500.0,0.00019999,2]
[408453674,1773661836254,-500.0,0.00019999,2]
[408453675,1773661836263,-619.79634777,0.00019999,2]
[408453676,1773661836271,-500.0,0.00019999,2]
[408453677,1773661836281,-500.0,0.00019999,2]
[408453678,1773661836290,-500.0,0.00019999,2]
[408453679,1773661836299,-500.0,0.00019999,2]
[408453680,1773661836308,-500.0,0.00019999,2]
[408453681,1773661836318,-500.0,0.00019999,2]
[408453682,1773661836327,-500.0,0.00019999,2]
[408453683,1773661836336,-500.0,0.00019999,2]
[408453684,1773661836344,-500.0,0.00019999,2]
[408453685,1773661836354,-500.0,0.00019999,2]
[408453686,1773661836364,-500.0,0.00019999,2]
[408453687,1773661836373,-500.0,0.00019999,2]
[408453688,1773661836382,-582.43351987,0.00019999,2]
[408453689,1773661836392,-500.0,0.00019999,2]
[408453690,1773661836401,-500.0,0.00019999,2]
[408453691,1773661836410,-547.81859587,0.00019999,2]
[408453692,1773661836419,-500.0,0.00019999,2]
[408453693,1773661836428,-500.0,0.00019999,2]
[408453694,1773661836437,-500.0,0.00019999,2]
[408453695,1773661836450,-500.0,0.00019999,2]
[408453696,1773661836459,-500.0,0.00019999,2]
[408453697,1773661836468,-500.0,0.00019999,2]
[408453698,1773661836481,-500.0,0.00019999,2]
[408453699,1773661836490,-424.604903,0.00019999,2]
[408453700,1773661836499,-2349.0,0.0002,5]
[408453701,1773661836508,-1877.0,0.0002,5]
[408453702,1773661836520,-250.0,0.0002,2]
[408453703,1773661836530,-500.0,0.0002,2]
[408453704,1773661836539,-763.0,0.0002,2]
[408453705,1773661836548,-582590.25447947,0.0002,2]
[408453706,1773661836734,-500.0,0.00019708,2]
[408453707,1773661836744,-500.0,0.00019708,2]
[408453708,1773661836754,-111266.06864248,0.0002,2]
[408453709,1773661836765,-16220.79100271,0.0002,2]
[408453710,1773661836776,-1919.23514875,0.0002,2]
[408453711,1773661838134,-500.0,0.00019708,2]
[408453712,1773661838143,-500.0,0.00019708,2]
[408453713,1773661838153,-500.0,0.00019708,2]
[408453714,1773661838162,-500.0,0.00019708,2]
[408453715,1773661838171,-500.0,0.00019708,2]